bitfinex-derivatives/quotes_BTCF0:USTF0_20251208
["timestamp","ask_amount","ask_price","bid_price","bid_amount"]
[1765190499386,0.05932,92221.0,92220.0,0.12093]
[1765190500487,0.06132,92221.0,92220.0,0.12093]
[1765190505793,0.5648,92221.0,92220.0,0.12093]
[1765190507892,0.030842,92226.0,92225.0,0.11009]
[1765190507893,0.52348,92226.0,92225.0,0.11009]
[1765190508103,0.60781,92226.0,92225.0,0.11009]
[1765190508493,0.52348,92226.0,92225.0,0.11009]
[1765190509192,0.52648,92226.0,92225.0,0.11009]
[1765190509393,0.53048,92226.0,92225.0,0.11009]
[1765190509787,0.574,92226.0,92225.0,0.11009]
[1765190512590,0.61481,92226.0,92225.0,0.11009]
[1765190512992,0.53048,92226.0,92225.0,0.11009]
[1765190514600,0.574,92226.0,92225.0,0.11009]
[1765190515100,0.61481,92226.0,92225.0,0.11009]
[1765190516992,0.574,92226.0,92225.0,0.11009]
[1765190517393,0.53048,92226.0,92225.0,0.11009]
[1765190517592,0.61481,92226.0,92225.0,0.11009]
[1765190518007,0.574,92226.0,92225.0,0.11009]
[1765190518701,0.53048,92226.0,92225.0,0.11009]
[1765190519887,0.61493,92226.0,92225.0,0.11009]
[1765190521188,0.61493,92226.0,92225.0,0.08329]
[1765190521587,0.61493,92226.0,92221.0,0.08859]
[1765190521588,0.0952925,92222.0,92221.0,0.08859]
[1765190521792,0.1452925,92222.0,92221.0,0.08859]
[1765190521990,0.08445,92216.0,92215.0,0.08859]
[1765190524403,0.08545,92216.0,92215.0,0.08859]
[1765190529408,0.0962932,92216.0,92215.0,0.08859]
[1765190529708,0.08545,92216.0,92215.0,0.08859]
[1765190531301,0.08445,92208.0,92207.0,0.0994341]
[1765190531503,0.08445,92208.0,92207.0,0.08859]
[1765190532897,0.08445,92208.0,92207.0,0.09059]
[1765190533299,0.08445,92208.0,92207.0,0.002]
[1765190533809,0.08445,92208.0,92207.0,0.04533]
[1765190534104,0.08445,92208.0,92207.0,0.08647]
[1765190534699,0.08445,92208.0,92207.0,0.08447]
[1765190534902,0.08445,92208.0,92207.0,0.08647]
[1765190542716,0.08445,92208.0,92207.0,0.002]
[1765190543116,0.08445,92208.0,92207.0,0.04533]
[1765190543415,0.08445,92208.0,92207.0,0.08647]
[1765190546017,0.16976298,92217.0,92216.0,0.08447]
[1765190546206,0.08277,92217.0,92216.0,0.08447]
[1765190546610,0.08277,92217.0,92216.0,0.0953132]
[1765190547813,0.04237,92217.0,92216.0,0.0953132]
[1765190548214,0.75173656,92226.0,92225.0,0.08447]
[1765190548405,0.66474358,92226.0,92225.0,0.08447]
[1765190549208,0.66774358,92226.0,92225.0,0.08447]
[1765190549406,0.66974358,92226.0,92225.0,0.08447]
[1765190551222,0.61125,92226.0,92225.0,0.08447]
[1765190556217,0.52848,92226.0,92219.0,0.08447]
[1765190556414,0.08277,92220.0,92219.0,0.08447]
[1765190556614,0.08277,92212.0,92211.0,0.0953137]
[1765190558010,0.04237,92212.0,92211.0,0.0953137]
[1765190558217,0.04237,92217.0,92216.0,0.0953132]
[1765190558415,0.58625,92217.0,92216.0,0.0953132]
[1765190559822,0.58725,92217.0,92216.0,0.0953132]
[1765190563126,0.54685,92217.0,92216.0,0.0953132]
[1765190563425,0.001,92217.0,92216.0,0.0953132]
[1765190563622,0.07403,92217.0,92216.0,0.0953132]
[1765190564828,0.001,92217.0,92216.0,0.0953132]
[1765190566225,0.03758,92217.0,92216.0,0.0953132]
[1765190566416,0.07403,92217.0,92216.0,0.0953132]
[1765190568222,0.001,92217.0,92216.0,0.0953132]
[1765190570635,0.02,92226.0,92225.0,0.1094821]
[1765190570919,0.1160002,92242.0,92241.0,0.0842902]
[1765190570920,0.0838702,92242.0,92241.0,0.0842902]
[1765190571124,0.07303,92242.0,92241.0,0.0842902]
[1765190573326,0.083869,92252.0,92251.0,0.0108389]
[1765190573536,0.573909,92252.0,92251.0,0.0842889]
[1765190574238,0.0585167,92258.0,92257.0,0.0108383]
[1765190574533,0.07303,92258.0,92257.0,0.0842883]
[1765190575332,0.07303,92258.0,92257.0,0.07345]
[1765190575526,0.07603,92258.0,92257.0,0.07345]
[1765190575729,0.08203,92258.0,92257.0,0.07345]
[1765190577938,0.14037081,92258.0,92257.0,0.07345]
[1765190579237,0.08203,92258.0,92257.0,0.0842883]
[1765190579538,0.08203,92258.0,92257.0,0.03631]
[1765190579738,0.07515,92251.0,92250.0,0.1111391]
[1765190580233,0.07515,92251.0,92250.0,0.1003]
[1765190580438,0.07515,92249.0,92248.0,0.00016264]
[1765190580826,0.07515,92249.0,92248.0,0.03748264]
[1765190581032,0.07515,92249.0,92248.0,0.00016264]
[1765190581735,0.07715,92249.0,92248.0,0.00016264]
[1765190581932,0.08015,92249.0,92248.0,0.00016264]
[1765190583734,0.13015,92249.0,92248.0,0.00016264]
[1765190583934,0.08015,92249.0,92248.0,0.00016264]
[1765190584243,0.08015,92249.0,92248.0,0.03748264]
[1765190585441,0.13015,92249.0,92248.0,0.03748264]
[1765190585639,0.13015,92249.0,92248.0,0.00016264]
[1765190585640,0.08015,92249.0,92248.0,0.00016264]
[1765190585838,0.08015,92249.0,92248.0,0.08611204]
[1765190586036,0.58347,92249.0,92248.0,0.08611204]
[1765190587038,0.58347,92249.0,92248.0,0.07527264]
[1765190587242,0.66347,92249.0,92248.0,0.03748264]
[1765190587539,0.63347,92249.0,92248.0,0.00016264]
[1765190587945,0.07515,92236.0,92235.0,0.09726]
[1765190589243,0.07615,92236.0,92235.0,0.09726]
[1765190591033,0.001,92236.0,92235.0,0.09726]
[1765190591632,0.03778,92236.0,92235.0,0.09726]
[1765190592038,0.07179,92236.0,92235.0,0.09726]
[1765190598048,0.07179,92236.0,92235.0,0.07511]
[1765190599546,0.07179,92236.0,92235.0,0.03732]
[1765190599749,0.0686,92227.0,92226.0,0.07043264]
[1765190600545,0.0686,92227.0,92226.0,0.08127464]
[1765190601859,0.0686,92227.0,92226.0,0.08327464]
[1765190603256,0.14592193,92236.0,92235.0,0.1036409]
[1765190603457,0.0686,92236.0,92235.0,0.1036409]
[1765190604255,0.0686,92243.0,92242.0,0.0811101]
[1765190605561,0.0726,92243.0,92242.0,0.0811101]
[1765190605953,0.0726,92243.0,92242.0,0.07027]
[1765190606656,0.0686,92236.0,92235.0,0.0928]
[1765190606859,0.0686,92232.0,92231.0,0.0811113]
[1765190607163,0.0686,92232.0,92231.0,0.03549]
[1765190607459,0.0794413,92232.0,92231.0,0.03549]
[1765190607649,0.0794419,92227.0,92226.0,0.07043264]
[1765190607849,0.0794419,92227.0,92226.0,0.03565264]
[1765190608249,0.0794419,92227.0,92226.0,0.07043264]
[1765190608656,0.0794419,92227.0,92226.0,0.07243264]
[1765190609057,0.0686,92227.0,92226.0,0.07243264]
[1765190610161,0.0686,92227.0,92226.0,0.09496264]
[1765190610667,0.0686,92230.0,92229.0,0.03478]
[1765190610857,0.0686,92230.0,92229.0,0.07027]
[1765190612065,0.0686,92230.0,92229.0,0.07127]
[1765190612550,0.0686,92230.0,92229.0,0.07027]
[1765190612752,0.0686,92230.0,92229.0,0.07127]
[1765190614063,0.0686,92230.0,92229.0,0.07027]
[1765190614358,0.0686,92230.0,92229.0,0.07127]
[1765190614563,0.03459,92230.0,92229.0,0.07127]
[1765190615853,0.0686,92230.0,92229.0,0.07127]
[1765190616360,0.12694081,92231.0,92230.0,0.0811115]
[1765190616567,0.12694081,92231.0,92230.0,0.07027]
[1765190617966,0.12694081,92231.0,92230.0,0.07127]
[1765190618465,0.09293081,92231.0,92230.0,0.07127]
[1765190619463,0.12694081,92231.0,92230.0,0.07127]
[1765190619858,0.12694081,92231.0,92230.0,0.07027]
[1765190620060,0.05834081,92231.0,92230.0,0.07127]
[1765190620269,0.05834081,92234.0,92231.0,0.0811114]
[1765190620465,0.05834081,92234.0,92233.0,0.07027]
[1765190620761,0.05834081,92235.0,92234.0,0.081111]
[1765190621358,0.09293081,92235.0,92234.0,0.081111]
[1765190621551,0.12694081,92235.0,92234.0,0.081111]
[1765190621967,0.12694081,92235.0,92234.0,0.07027]
[1765190623258,0.12794081,92235.0,92234.0,0.07027]
[1765190623763,0.0696,92235.0,92234.0,0.07027]
[1765190624555,0.12813735,92235.0,92234.0,0.07027]
[1765190624960,0.12813735,92235.0,92234.0,0.07127]
[1765190625465,0.12813735,92235.0,92234.0,0.07227]
[1765190625672,0.12713735,92235.0,92234.0,0.07227]
[1765190625964,0.0686,92235.0,92234.0,0.07227]
[1765190626670,0.0686,92235.0,92234.0,0.083111]
[1765190631464,0.08375,92243.0,92242.0,0.0762001]
[1765190632473,0.08475,92243.0,92242.0,0.0762001]
[1765190632872,0.08475,92243.0,92242.0,0.06536]
[1765190641075,0.14328735,92243.0,92242.0,0.06536]
[1765190644083,0.05415,92243.0,92242.0,0.06536]
[1765190644288,0.021,92243.0,92242.0,0.06536]
[1765190645180,0.07918,92243.0,92242.0,0.06536]
[1765190652986,0.021,92243.0,92242.0,0.06536]
[1765190653290,0.0797,92243.0,92242.0,0.06536]
[1765190658391,0.021,92243.0,92242.0,0.06536]
[1765190658789,0.021,92243.0,92242.0,0.1043487]
[1765190660397,0.021,92243.0,92242.0,0.06536]
[1765190664198,0.03184,92243.0,92242.0,0.06536]
[1765190664388,0.04998,92243.0,92242.0,0.06536]
[1765190664590,0.021,92243.0,92242.0,0.06536]
[1765190665896,0.04998,92243.0,92242.0,0.06536]
[1765190666194,0.0797,92243.0,92242.0,0.06536]
[1765190671201,0.04998,92243.0,92242.0,0.06536]
[1765190671695,0.0797,92243.0,92242.0,0.06536]
[1765190672200,0.04998,92243.0,92242.0,0.06536]
[1765190672392,0.0797,92243.0,92242.0,0.06536]
[1765190675992,0.021,92243.0,92242.0,0.06536]
[1765190676191,0.04998,92243.0,92242.0,0.06536]
[1765190676398,0.0797,92243.0,92242.0,0.06536]
[1765190679606,0.0108401,92242.0,92241.0,0.05702]
[1765190679810,0.0695405,92239.0,92238.0,0.08610253]
[1765190680013,0.0695405,92239.0,92238.0,0.08610473]
[1765190681100,0.0587,92239.0,92238.0,0.08610473]
[1765190681306,0.0587,92239.0,92238.0,0.08710473]
[1765190682512,0.0695405,92239.0,92238.0,0.08710473]
[1765190683016,0.0587,92239.0,92238.0,0.08710473]
[1765190684513,0.5232,92243.0,92238.0,0.08710473]
[1765190684514,0.02,92243.0,92242.0,0.0678801]
[1765190685807,0.021,92243.0,92242.0,0.0678801]
[1765190687514,0.00016264,92245.0,92242.0,0.0678801]
[1765190687720,0.010838,92260.0,92259.0,0.05704]
[1765190687721,0.067888,92260.0,92259.0,0.05704]
[1765190688918,0.067888,92260.0,92259.0,0.0678781]
[1765190689318,0.05705,92260.0,92259.0,0.0678781]
[1765190690223,0.06205,92260.0,92259.0,0.0678781]
[1765190690417,0.06505,92260.0,92259.0,0.0678781]
[1765190692815,0.06505,92260.0,92259.0,0.05704]
[1765190696015,0.0108389,92253.0,92251.0,0.039539]
[1765190696223,0.05705,92252.0,92251.0,0.067879]
[1765190697918,0.05905,92252.0,92251.0,0.067879]
[1765190698827,0.06205,92252.0,92251.0,0.067879]
[1765190701333,0.06205,92252.0,92251.0,0.0678791]
[1765190702925,0.06205,92252.0,92251.0,0.09694954]
[1765190704730,0.0339,92252.0,92251.0,0.09694954]
[1765190704927,0.005,92252.0,92251.0,0.09694954]
[1765190705733,0.005,92252.0,92251.0,0.0678791]
[1765190706128,0.06152,92252.0,92251.0,0.0678791]
[1765190706926,0.06152,92252.0,92251.0,0.08540346]
[1765190707235,0.03315,92252.0,92251.0,0.08540346]
[1765190710336,0.03315,92252.0,92251.0,0.05636]
[1765190711128,0.06152,92252.0,92251.0,0.05636]
[1765190712834,0.06152,92252.0,92251.0,0.08542341]
[1765190713236,0.06152,92252.0,92251.0,0.05636]
[1765190714434,0.06152,92252.0,92251.0,0.08543577]
[1765190715746,0.06152,92252.0,92251.0,0.05636]
[1765190722331,0.06152,92252.0,92251.0,0.0671991]
[1765190722534,0.06152,92252.0,92251.0,0.05636]
[1765190730945,0.005,92252.0,92251.0,0.05636]
[1765190732154,0.03419,92252.0,92251.0,0.05636]
[1765190732450,0.06136,92252.0,92251.0,0.05636]
[1765190744650,0.06136,92252.0,92251.0,0.08546099]
[1765190745254,0.06136,92252.0,92251.0,0.05636]
[1765190751869,0.06136,92252.0,92251.0,0.08545996]
[1765190752066,0.06136,92252.0,92251.0,0.05636]
[1765190752462,0.06136,92252.0,92251.0,0.08545927]
[1765190753668,0.0675799,92244.0,92243.0,0.03876059]
[1765190753872,0.05674,92226.0,92225.0,0.0686821]
[1765190754466,0.02711,92226.0,92225.0,0.0686821]
[1765190755563,0.02711,92226.0,92225.0,0.0696821]
[1765190755976,0.02711,92226.0,92225.0,0.0736821]
[1765190756971,0.05674,92226.0,92225.0,0.0736821]
[1765190758271,0.05674,92226.0,92225.0,0.0686821]
[1765190758474,0.05674,92226.0,92225.0,0.0736821]
[1765190758866,0.05674,92226.0,92225.0,0.0696821]
[1765190759069,0.02711,92226.0,92225.0,0.0726821]
[1765190759466,0.0677716,92230.0,92229.0,0.0692016]
[1765190760171,0.00016264,92235.0,92234.0,0.05836]
[1765190761872,0.00016264,92235.0,92234.0,0.06236]
[1765190762173,0.00016264,92235.0,92234.0,0.06436]
[1765190762762,0.00016264,92235.0,92234.0,0.06036]
[1765190762967,0.00016264,92235.0,92234.0,0.06736]
[1765190764067,0.00016264,92235.0,92234.0,0.06836]
[1765190764872,0.02979264,92235.0,92234.0,0.06736]
[1765190765177,0.00016264,92235.0,92234.0,0.06736]
[1765190765367,0.00016264,92235.0,92234.0,0.06036]
[1765190765566,0.00016264,92235.0,92234.0,0.06536]
[1765190765768,0.05709264,92235.0,92234.0,0.06536]
[1765190765966,0.05709264,92235.0,92234.0,0.002]
[1765190765967,0.13078354,92235.0,92234.0,0.002]
[1765190766174,0.12078354,92235.0,92234.0,0.007]
[1765190766977,0.13078354,92235.0,92234.0,0.007]
[1765190767278,0.05693,92218.0,92217.0,0.05836]
[1765190767468,0.05693,92218.0,92217.0,0.06913137]
[1765190768367,0.05693,92218.0,92217.0,0.05836]
[1765190768773,0.05693,92218.0,92217.0,0.06036]
[1765190770875,0.05693,92218.0,92217.0,0.05836]
[1765190772378,0.05793,92218.0,92217.0,0.05836]
[1765190772977,0.05693,92218.0,92217.0,0.05836]
[1765190773373,0.0680231,92217.0,92216.0,0.00016264]
[1765190773769,0.1180231,92217.0,92216.0,0.00016264]
[1765190773973,0.1080231,92217.0,92216.0,0.00016264]
[1765190774176,0.1180231,92217.0,92216.0,0.00016264]
[1765190774376,0.1190231,92217.0,92216.0,0.00016264]
[1765190774574,0.05718,92201.0,92200.0,0.083725]
[1765190774778,0.05718,92201.0,92200.0,0.07288]
[1765190776874,0.05718,92201.0,92200.0,0.07388]
[1765190779873,0.06818654,92210.0,92209.0,0.05529]
[1765190780988,0.07018654,92210.0,92209.0,0.066134]
[1765190781779,0.05934264,92210.0,92209.0,0.066134]
[1765190782083,0.05834264,92210.0,92209.0,0.066134]
[1765190783479,0.05734264,92210.0,92209.0,0.066134]
[1765190783680,0.05734264,92210.0,92209.0,0.067134]
[1765190783985,0.02823264,92210.0,92209.0,0.067134]
[1765190784382,0.00016264,92210.0,92209.0,0.067134]
[1765190784682,0.00116264,92210.0,92209.0,0.067134]
[1765190784992,0.00116264,92210.0,92209.0,0.066134]
[1765190785787,0.00016264,92210.0,92209.0,0.068134]
[1765190786584,0.00016264,92210.0,92209.0,0.069134]
[1765190787186,0.00016264,92210.0,92209.0,0.066134]
[1765190787386,0.00016264,92210.0,92209.0,0.068134]
[1765190787788,0.00016264,92210.0,92209.0,0.067134]
[1765190788191,0.00016264,92210.0,92209.0,0.068134]
[1765190788392,0.00016264,92210.0,92209.0,0.067134]
[1765190788591,0.00016264,92210.0,92209.0,0.068134]
[1765190791091,0.00016264,92210.0,92209.0,0.066134]
[1765190791282,0.00016264,92210.0,92209.0,0.068134]
[1765190791682,0.00016264,92210.0,92209.0,0.067134]
[1765190791882,0.00016264,92210.0,92209.0,0.068134]
[1765190793689,0.00016264,92210.0,92209.0,0.067134]
[1765190793986,0.00016264,92210.0,92209.0,0.068134]
[1765190794193,0.0680225,92224.0,92223.0,0.0661323]
[1765190795182,0.0389119,92227.0,92226.0,0.0108416]
[1765190795383,0.0389119,92227.0,92226.0,0.0661316]
[1765190796083,0.0680219,92227.0,92226.0,0.0661316]
[1765190796489,0.0680219,92227.0,92226.0,0.05529]
[1765190796695,0.0108426,92223.0,92222.0,0.0661324]
[1765190796991,0.0680226,92223.0,92222.0,0.0661324]
[1765190799087,0.0700226,92223.0,92222.0,0.0661324]
[1765190799282,0.05918,92223.0,92222.0,0.0661324]
[1765190801986,0.002,92223.0,92222.0,0.0661324]
[1765190802292,0.03007,92223.0,92222.0,0.0661324]
[1765190802594,0.0591,92223.0,92222.0,0.0661324]
[1765190804294,0.1091,92223.0,92222.0,0.05529]
[1765190804496,0.0591,92223.0,92222.0,0.05529]
[1765190805586,0.0591,92223.0,92215.0,0.0872232]
[1765190805587,0.05643,92216.0,92215.0,0.0872232]
[1765190806387,0.05643,92216.0,92215.0,0.07638]
[1765190806692,0.11917,92216.0,92215.0,0.07638]
[1765190807292,0.06274,92216.0,92215.0,0.07638]
[1765190808600,0.05659264,92233.0,92232.0,0.0693113]
[1765190808792,0.02756264,92233.0,92232.0,0.0693113]
[1765190808991,0.00016264,92233.0,92232.0,0.0693113]
[1765190810193,0.00416264,92233.0,92232.0,0.0693113]
[1765190813698,0.03314,92241.0,92240.0,0.0693103]
[1765190815101,0.03414,92241.0,92240.0,0.0693103]
[1765190815897,0.001,92241.0,92240.0,0.0693103]
[1765190816596,0.001,92241.0,92240.0,0.09835656]
[1765190816798,0.0672689,92253.0,92252.0,0.0693089]
[1765190818104,0.05643,92253.0,92252.0,0.0693089]
[1765190818305,0.06043,92253.0,92252.0,0.0693089]
[1765190819903,0.06043,92253.0,92252.0,0.07973183]
[1765190820397,0.004,92253.0,92252.0,0.07973183]
[1765190821302,0.03377,92253.0,92252.0,0.07973183]
[1765190821902,0.06337,92253.0,92252.0,0.07973183]
[1765190828319,0.004,92253.0,92252.0,0.07973183]
[1765190828705,0.03314,92261.0,92252.0,0.07973183]
[1765190828706,0.03314,92261.0,92260.0,0.075908]
[1765190829005,0.09251,92261.0,92260.0,0.075908]
[1765190829202,0.05937,92261.0,92260.0,0.075908]
[1765190829800,0.06437,92261.0,92260.0,0.075908]
[1765190829995,0.01651,92260.0,92259.0,0.010838]
[1765190830201,0.05937,92254.0,92253.0,0.05433]
[1765190830408,0.0702089,92254.0,92253.0,0.0651687]
[1765190830799,0.0702089,92254.0,92253.0,0.05433]
[1765190831402,0.0406089,92254.0,92253.0,0.05433]
[1765190831804,0.0702089,92254.0,92253.0,0.05433]
[1765190832202,0.05937,92254.0,92253.0,0.05433]
[1765190832602,0.06137,92254.0,92253.0,0.05433]
[1765190835106,0.06137,92254.0,92247.0,0.05672]
[1765190835107,0.0682094,92248.0,92247.0,0.05672]
[1765190835311,0.05737,92248.0,92247.0,0.09650217]
[1765190835502,0.05937,92254.0,92253.0,0.0675588]
[1765190836104,0.05737,92254.0,92253.0,0.0675588]
[1765190836911,0.05937,92254.0,92253.0,0.0675588]
[1765190837112,0.05937,92254.0,92253.0,0.05672]
[1765190837314,0.05737,92251.0,92250.0,0.0383391]
[1765190837619,0.05737,92251.0,92250.0,0.0275]
[1765190838209,0.05737,92251.0,92250.0,0.05672]
[1765190838612,0.05837,92251.0,92250.0,0.05672]
[1765190839509,0.05837,92251.0,92250.0,0.0856847]
[1765190839714,0.03007,92251.0,92250.0,0.1021647]
[1765190839917,0.001,92251.0,92250.0,0.1021647]
[1765190840323,0.001,92251.0,92250.0,0.0732]
[1765190841317,0.05837,92251.0,92250.0,0.0732]
[1765190842216,0.05837,92251.0,92250.0,0.05672]
[1765190845920,0.05837,92251.0,92250.0,0.08576365]
[1765190847526,0.05837,92251.0,92250.0,0.05672]
[1765190848520,0.001,92251.0,92250.0,0.11582458]
[1765190848821,0.03007,92251.0,92250.0,0.0671]
[1765190849022,0.001,92251.0,92250.0,0.10577977]
[1765190849419,0.001,92251.0,92250.0,0.15584905]
[1765190850120,0.06222,92260.0,92259.0,0.05672]
[1765190850314,0.06222,92260.0,92259.0,0.0675581]
[1765190850518,0.05737,92260.0,92259.0,0.0675581]
[1765190850719,0.05737,92260.0,92259.0,0.0383381]
[1765190850925,0.05737,92260.0,92259.0,0.0675581]
[1765190851527,0.06037,92260.0,92259.0,0.0675581]
[1765190852123,0.05737,92255.0,92254.0,0.0108387]
[1765190852324,0.05737,92255.0,92254.0,0.0383387]
[1765190853621,0.05737,92255.0,92254.0,0.0675587]
[1765190853827,0.06223,92259.0,92258.0,0.0675582]
[1765190854021,0.09053,92259.0,92258.0,0.0675582]
[1765190855033,0.09253,92259.0,92258.0,0.0675582]
[1765190855428,0.05937,92259.0,92258.0,0.0675582]
[1765190856527,0.03107,92259.0,92258.0,0.0675582]
[1765190856725,0.002,92259.0,92258.0,0.0675582]
[1765190861835,0.002,92259.0,92258.0,0.10623797]
[1765190862837,0.002,92259.0,92258.0,0.0675582]
[1765190864033,0.004,92259.0,92258.0,0.0675582]
[1765190865731,0.03316,92263.0,92262.0,0.0843878]
[1765190866131,0.22718305,92280.0,92279.0,0.0679758]
[1765190866329,0.1686457,92280.0,92279.0,0.0679758]
[1765190866726,0.1861357,92280.0,92279.0,0.0679758]
[1765190867031,0.1753,92280.0,92279.0,0.0679758]
[1765190867237,0.15781,92280.0,92279.0,0.0679758]
[1765190867420,0.15881,92280.0,92279.0,0.0679758]
[1765190867828,0.15981,92280.0,92279.0,0.0679758]
[1765190873635,0.0686464,92274.0,92273.0,0.0679764]
[1765190874644,0.0861364,92274.0,92273.0,0.0679764]
[1765190874937,0.0861364,92274.0,92270.0,0.01099935]
[1765190874938,0.0686467,92271.0,92270.0,0.01099935]
[1765190875331,0.05781,92271.0,92270.0,0.04033935]
[1765190876129,0.05781,92271.0,92270.0,0.06813935]
[1765190876931,0.05781,92271.0,92270.0,0.07013935]
[1765190878044,0.0686461,92277.0,92276.0,0.05714]
[1765190879236,0.0696461,92277.0,92276.0,0.05714]
[1765190880940,0.05735,92271.0,92270.0,0.03006255]
[1765190881545,0.05735,92271.0,92270.0,0.00016255]
[1765190882439,0.05735,92271.0,92270.0,0.03006255]
[1765190882641,0.05735,92271.0,92270.0,0.05875255]
[1765190883040,0.05735,92271.0,92270.0,0.06075255]
[1765190884239,0.0681876,92263.0,92262.0,0.02901648]
[1765190884543,0.05735,92258.0,92257.0,0.02901648]
[1765190884741,0.0681882,92258.0,92257.0,0.0299]
[1765190885649,0.0681882,92258.0,92257.0,0.0309]
[1765190885837,0.0681882,92258.0,92257.0,0.05959]
[1765190886430,0.0681882,92258.0,92257.0,0.06059]
[1765190886737,0.05735,92258.0,92257.0,0.06059]
[1765190886938,0.05735,92258.0,92257.0,0.05859]
[1765190887247,0.05735,92258.0,92257.0,0.06059]
[1765190887634,0.05735,92258.0,92257.0,0.05959]
[1765190887838,0.05735,92258.0,92257.0,0.06059]
[1765190888848,0.05735,92258.0,92257.0,0.05959]
[1765190889037,0.05735,92258.0,92257.0,0.0299]
[1765190889236,0.05735,92258.0,92257.0,0.0319]
[1765190889849,0.05735,92258.0,92257.0,0.0309]
[1765190890054,0.05735,92258.0,92257.0,0.05959]
[1765190891046,0.05735,92258.0,92257.0,0.001]
[1765190891344,0.05735,92258.0,92257.0,0.0309]
[1765190891549,0.05735,92258.0,92257.0,0.05959]
[1765190893351,0.05735,92258.0,92257.0,0.001]
[1765190893352,0.10735,92258.0,92257.0,0.001]
[1765190893550,0.09735,92258.0,92257.0,0.001]
[1765190893944,0.10735,92258.0,92257.0,0.001]
[1765190894253,0.10735,92258.0,92248.0,0.00016255]
[1765190894254,0.0659593,92249.0,92248.0,0.00016255]
[1765190894548,0.1059593,92249.0,92248.0,0.00016255]
[1765190895147,0.0659603,92240.0,92239.0,0.02974]
[1765190895738,0.05512,92240.0,92239.0,0.05718]
[1765190896338,0.10382307,92250.0,92249.0,0.0680193]
[1765190896339,0.14198307,92250.0,92249.0,0.0680193]
[1765190896648,0.05512,92250.0,92249.0,0.0680193]
[1765190897655,0.07208,92250.0,92249.0,0.0700193]
[1765190897844,0.07208,92250.0,92249.0,0.0710193]
[1765190898044,0.07208,92250.0,92249.0,0.0690193]
[1765190898251,0.07208,92250.0,92249.0,0.0710193]
[1765190899344,0.05512,92250.0,92249.0,0.0710193]
[1765190899654,0.05512,92250.0,92249.0,0.0700193]
[1765190900354,0.05512,92250.0,92249.0,0.0710193]
[1765190901053,0.05512,92250.0,92249.0,0.0700193]
[1765190901250,0.05512,92250.0,92249.0,0.0710193]
[1765190902458,0.05512,92250.0,92249.0,0.0720193]
[1765190903553,0.08832,92250.0,92249.0,0.0720193]
[1765190904765,0.08832,92250.0,92249.0,0.0710193]
[1765190905055,0.08832,92250.0,92249.0,0.0720193]
[1765190906349,0.10528,92250.0,92249.0,0.002]
[1765190906550,0.10528,92250.0,92249.0,0.005]
[1765190907458,0.10528,92250.0,92249.0,0.002]
[1765190907858,0.05512,92246.0,92245.0,0.09703618]
[1765190909148,0.0273,92246.0,92245.0,0.09703618]
[1765190909350,0.08832,92250.0,92249.0,0.0680193]
[1765190910048,0.0332,92250.0,92249.0,0.0680193]
[1765190910355,0.08832,92250.0,92249.0,0.0680193]
[1765190910654,0.10528,92250.0,92249.0,0.0680193]
[1765190910841,0.10528,92250.0,92249.0,0.0690193]
[1765190911256,0.08832,92250.0,92249.0,0.0690193]
[1765190911758,0.08832,92250.0,92249.0,0.0700193]
[1765190912357,0.10528,92250.0,92249.0,0.0700193]
[1765190916161,0.10528,92250.0,92249.0,0.002]
[1765190916162,0.14528,92250.0,92249.0,0.002]
[1765190916351,0.15528,92250.0,92249.0,0.002]
[1765190916552,0.15528,92250.0,92249.0,0.03104197]
[1765190916553,0.18528,92250.0,92249.0,0.03104197]
[1765190916753,0.0332,92250.0,92249.0,0.05918]
[1765190917266,0.0332,92250.0,92249.0,0.05818]
[1765190917761,0.0332,92250.0,92249.0,0.0969047]
[1765190918860,0.0332,92250.0,92249.0,0.0959047]
[1765190919054,0.0332,92250.0,92249.0,0.0969047]
[1765190919461,0.0332,92250.0,92249.0,0.0979047]
[1765190919865,0.0322,92250.0,92249.0,0.05918]
[1765190920054,0.0322,92250.0,92249.0,0.11766305]
[1765190920254,0.02746255,92259.0,92258.0,0.0680182]
[1765190920461,0.05528255,92259.0,92258.0,0.0970545]
[1765190921861,0.05628255,92259.0,92258.0,0.0970545]
[1765190922253,0.05628255,92259.0,92258.0,0.0680182]
[1765190923556,0.05628255,92259.0,92258.0,0.09705657]
[1765190924162,0.05628255,92259.0,92258.0,0.0680182]
[1765190925062,0.05794255,92259.0,92258.0,0.0680182]
[1765190928969,0.00116255,92259.0,92258.0,0.0680182]
[1765190929471,0.06062255,92259.0,92258.0,0.0680182]
[1765190941182,0.06062255,92259.0,92258.0,0.02974]
[1765190941378,0.06062255,92259.0,92258.0,0.05732]
[1765190941575,0.06062255,92259.0,92257.0,0.0108383]
[1765190941787,0.05564,92258.0,92257.0,0.0108383]
[1765190942084,0.05564,92258.0,92257.0,0.0661083]
[1765190942665,0.07293,92255.0,92254.0,0.04955376]
[1765190942881,0.07293,92255.0,92254.0,0.10482376]
[1765190945682,0.07293,92255.0,92254.0,0.0661087]
[1765190945883,0.05564,92255.0,92254.0,0.0661087]
[1765190971893,0.06758,92252.0,92251.0,0.06932205]
[1765190972098,0.06758,92252.0,92251.0,0.010839]
[1765190972496,0.06758,92252.0,92251.0,0.068089]
[1765190973195,0.06758,92252.0,92251.0,0.069089]
[1765190974096,0.06758,92252.0,92251.0,0.011839]
[1765190974801,0.06758,92252.0,92251.0,0.001]
[1765190976294,0.05538,92250.0,92249.0,0.07921378]
[1765190976486,0.05538,92250.0,92249.0,0.06836472]
[1765190976899,0.05538,92250.0,92249.0,0.06836477]
[1765190977100,0.05538,92250.0,92249.0,0.02963255]
[1765190977398,0.05538,92250.0,92249.0,0.03889177]
[1765190977699,0.05538,92250.0,92249.0,0.06836177]
[1765190978495,0.05538,92250.0,92249.0,0.06936177]
[1765190978696,0.05538,92250.0,92249.0,0.09714177]
[1765190978889,0.05538,92250.0,92249.0,0.09614177]
[1765190979093,0.05538,92250.0,92249.0,0.05841255]
[1765190979399,0.05538,92250.0,92249.0,0.09713708]